bitfinex/quotes_BTCUSD_20220304
["timestamp","ask_amount","ask_price","bid_price","bid_amount"]
[1646380808847,0.15759838,41476.0,41469.0,0.26459284]
[1646380809047,0.060337,41477.0,41469.0,0.26459284]
[1646380809347,0.060337,41477.0,41473.0,0.15722219]
[1646380809548,0.055337,41477.0,41473.0,0.15722219]
[1646380809952,0.00736145,41475.0,41473.0,0.15722219]
[1646380810149,0.055337,41477.0,41473.0,0.15722219]
[1646380810350,0.055337,41477.0,41474.0,0.16703861]
[1646380810548,0.055337,41477.0,41473.0,0.15722219]
[1646380811348,0.00736145,41475.0,41473.0,0.15722219]
[1646380811623,0.120674,41475.0,41473.0,0.15722219]
[1646380811822,0.220674,41475.0,41473.0,0.15722219]
[1646380812224,0.366994,41474.0,41473.0,0.15722219]
[1646380812422,0.220674,41475.0,41473.0,0.15722219]
[1646380812627,0.1,41474.0,41473.0,0.15722219]
[1646380812823,0.220674,41475.0,41473.0,0.15722219]
[1646380813024,0.00736145,41474.0,41473.0,0.15722219]
[1646380814628,0.00736145,41474.0,41473.0,0.88369138]
[1646380814830,0.00736145,41474.0,41473.0,0.58369138]
[1646380815026,0.00736145,41474.0,41473.0,0.58401178]
[1646380815227,0.00736145,41474.0,41473.0,0.58369138]
[1646380815656,0.00736145,41474.0,41473.0,0.31444438]
[1646380816357,0.00120635,41479.0,41475.0,0.269232]
[1646380816555,0.00120635,41479.0,41475.0,0.29131635]
[1646380816756,0.00120635,41479.0,41475.0,0.39131635]
[1646380816958,0.00120635,41479.0,41477.0,0.15722219]
[1646380817156,0.00120635,41479.0,41478.0,0.269208]
[1646380817360,0.001,41483.0,41480.0,0.269192]
[1646380818858,0.00230621,41482.0,41480.0,0.44873021]
[1646380819908,0.00230621,41482.0,41481.0,0.42640619]
[1646380821308,0.00230621,41482.0,41481.0,0.15722219]
[1646380821503,0.16310616,41482.0,41481.0,0.15722219]
[1646380822404,0.16310616,41482.0,41481.0,0.31444438]
[1646380823758,0.00230621,41482.0,41481.0,0.58362738]
[1646380824657,0.46480466,41482.0,41481.0,0.58362738]
[1646380824858,0.19551189,41482.0,41481.0,0.31444438]
[1646380825259,0.00230621,41482.0,41481.0,0.31444438]
[1646380825460,0.00230621,41482.0,41481.0,0.58362738]
[1646380826263,0.00230621,41482.0,41481.0,0.31444438]
[1646380826462,0.00230621,41482.0,41481.0,0.58362838]
[1646380827407,0.00230621,41482.0,41481.0,0.58394878]
[1646380827609,0.00230621,41482.0,41481.0,0.58362838]
[1646380828606,0.00230621,41482.0,41481.0,0.58394878]
[1646380829206,0.00230621,41482.0,41481.0,0.58362838]
[1646380829607,0.00050621,41487.0,41482.0,0.5166232]
[1646380829808,0.00050621,41487.0,41482.0,0.72082957]
[1646380830212,0.00050621,41487.0,41484.0,0.31444438]
[1646380830460,0.00050621,41487.0,41485.0,0.269151]
[1646380832259,0.001,41493.0,41487.0,0.269132]
[1646380832861,0.001,41493.0,41487.0,0.369132]
[1646380833260,0.001,41493.0,41488.0,0.17790155]
[1646380833460,0.001,41493.0,41489.0,0.269117]
[1646380835011,0.001,41493.0,41489.0,0.569117]
[1646380835211,0.001,41493.0,41492.0,0.0003204]
[1646380835513,0.001,41493.0,41492.0,0.58385878]
[1646380835811,0.001,41493.0,41492.0,0.63385878]
[1646380837213,0.001,41493.0,41492.0,0.63353838]
[1646380838065,0.001,41493.0,41492.0,0.63253838]
[1646380838661,0.001,41493.0,41492.0,0.63399327]
[1646380842517,0.001,41493.0,41492.0,0.58499327]
[1646380842718,0.001,41493.0,41492.0,0.31589927]
[1646380847559,0.367994,41493.0,41492.0,0.31589927]
[1646380848156,0.467994,41493.0,41492.0,0.31589927]
[1646380849201,0.467994,41493.0,41492.0,0.31444438]
[1646380850302,0.90263515,41493.0,41492.0,0.31444438]
[1646380850501,0.26761763,41496.0,41492.0,0.31444438]
[1646380850502,0.366929,41495.0,41492.0,0.31444438]
[1646380850905,0.16967119,41486.0,41477.0,0.121]
[1646380851105,0.15686338,41489.0,41486.0,0.65378676]
[1646380851302,0.366929,41488.0,41486.0,0.65378676]
[1646380851503,0.366929,41487.0,41486.0,0.65378676]
[1646380851701,0.15686338,41489.0,41486.0,0.65378676]
[1646380852102,0.003,41493.0,41486.0,0.65378676]
[1646380852955,0.57540309,41492.0,41486.0,0.65378676]
[1646380853154,0.20815304,41492.0,41486.0,0.65378676]
[1646380853658,0.366929,41491.0,41486.0,0.65378676]
[1646380853854,0.20815304,41492.0,41486.0,0.65378676]
[1646380854656,0.28079381,41490.0,41486.0,0.65378676]
[1646380854855,0.366929,41489.0,41486.0,0.65378676]
[1646380855058,0.20815304,41492.0,41486.0,0.65378676]
[1646380855255,0.366929,41491.0,41486.0,0.65378676]
[1646380855456,0.20815304,41492.0,41486.0,0.65378676]
[1646380855855,0.59311693,41490.0,41486.0,0.65378676]
[1646380856055,0.22618793,41490.0,41486.0,0.65378676]
[1646380856257,0.366929,41489.0,41486.0,0.33934238]
[1646380856632,0.366929,41488.0,41486.0,0.33934238]
[1646380856833,0.20815304,41492.0,41486.0,0.33934238]
[1646380857032,0.366929,41491.0,41486.0,0.33934238]
[1646380857233,0.366929,41487.0,41486.0,0.33934238]
[1646380857432,0.26437608,41488.0,41486.0,0.33934238]
[1646380857634,0.366929,41487.0,41486.0,0.33934238]
[1646380859536,1.40070028,41487.0,41486.0,0.33934238]
[1646380859736,1.05078514,41487.0,41486.0,0.33934238]
[1646380859938,0.466929,41487.0,41486.0,0.33934238]
[1646380860562,0.1,41487.0,41486.0,0.33934238]
[1646380860760,0.003,41491.0,41486.0,0.33934238]
[1646380860961,0.366929,41490.0,41486.0,0.33934238]
[1646380861565,0.366929,41490.0,41488.0,0.31444438]
[1646380861761,0.0996481,41489.0,41488.0,0.31444438]
[1646380861965,0.4665771,41489.0,41488.0,0.31444438]
[1646380862364,0.5165771,41489.0,41488.0,0.31444438]
[1646380862564,0.81212808,41489.0,41488.0,0.31444438]
[1646380863064,0.5165771,41489.0,41488.0,0.31444438]
[1646380863265,0.366929,41489.0,41488.0,0.31444438]
[1646380866409,0.31692865,41489.0,41488.0,0.31444438]
[1646380867608,0.31685435,41489.0,41488.0,0.31444438]
[1646380868868,0.31685435,41489.0,41488.0,0.57382757]
[1646380869667,0.31685435,41489.0,41488.0,0.31444438]
[1646380872209,0.61685435,41489.0,41488.0,0.31444438]
[1646380874210,0.71685435,41489.0,41488.0,0.31444438]
[1646380878255,0.41685435,41489.0,41488.0,0.31444438]
[1646380889707,0.41645435,41489.0,41488.0,0.31433437]
[1646380889907,0.41645435,41489.0,41488.0,0.15722219]
[1646380890111,0.31645435,41489.0,41488.0,0.31433437]
[1646380890360,0.1,41494.0,41488.0,0.31433437]
[1646380890560,0.366942,41493.0,41488.0,0.31433437]
[1646380890759,0.466942,41492.0,41489.0,0.28204544]
[1646380890964,0.466942,41492.0,41491.0,0.15722219]
[1646380891361,1.42383967,41492.0,41491.0,0.15722219]
[1646380891862,0.366942,41492.0,41491.0,0.15722219]
[1646380892060,0.13886896,41497.0,41491.0,0.15722219]
[1646380892261,0.003,41497.0,41491.0,0.15722219]
[1646380892663,0.366942,41496.0,41491.0,0.15722219]
[1646380892961,0.366942,41494.0,41492.0,0.22429108]
[1646380893560,0.366942,41494.0,41491.0,0.15722219]
[1646380894629,0.366942,41494.0,41491.0,0.44350017]
[1646380895229,0.366942,41494.0,41491.0,0.15722219]
[1646380895426,0.366942,41494.0,41492.0,0.15711218]
[1646380896226,0.366942,41494.0,41493.0,0.15722219]
[1646380899869,0.25150137,41495.0,41493.0,0.3268636]
[1646380900068,0.21552466,41495.0,41493.0,0.15722219]
[1646380900273,0.004,41497.0,41493.0,0.15722219]
[1646380900472,0.004,41497.0,41496.0,0.15]
[1646380900871,0.004,41497.0,41496.0,0.30711218]
[1646380901069,0.004,41497.0,41496.0,0.67198592]
[1646380901271,0.001,41499.0,41496.0,0.67198592]
[1646380901472,0.17713891,41497.0,41496.0,0.67198592]
[1646380903314,0.001,41499.0,41496.0,0.67198592]
[1646380903522,0.001,41499.0,41498.0,0.366942]
[1646380904715,0.001,41499.0,41498.0,0.391092]
[1646380904916,0.001,41499.0,41498.0,0.691092]
[1646380905118,0.0001,41500.0,41498.0,0.691092]
[1646380905372,0.001,41508.0,41500.0,0.02415]
[1646380905571,0.001,41508.0,41507.0,0.15]
[1646380905774,0.001,41508.0,41504.0,0.28504646]
[1646380905973,0.001,41508.0,41504.0,0.43504646]
[1646380906171,0.001,41508.0,41504.0,0.59215864]
[1646380906371,0.001,41508.0,41504.0,0.15711218]
[1646380906372,0.366942,41507.0,41504.0,0.15711218]
[1646380906573,0.001,41508.0,41506.0,0.15722219]
[1646380907974,0.001,41508.0,41506.0,0.15262219]
[1646380908574,0.00375509,41508.0,41506.0,0.43367884]
[1646380908874,0.21515305,41507.0,41506.0,0.15262219]
[1646380909909,0.21515305,41507.0,41506.0,0.30262219]
[1646380910412,0.21515305,41507.0,41506.0,0.15262219]
[1646380910413,0.58209505,41507.0,41506.0,0.15262219]
[1646380911410,0.58209505,41507.0,41506.0,0.30973437]
[1646380911614,0.58209505,41507.0,41506.0,0.15711218]
[1646380911809,0.21515305,41507.0,41506.0,0.15711218]
[1646380912009,0.21515305,41507.0,41506.0,0.30973437]
[1646380912208,0.58209505,41507.0,41506.0,0.30973437]
[1646380912409,0.21515305,41507.0,41506.0,0.59164331]
[1646380913068,0.21515305,41507.0,41506.0,0.30973437]
[1646380913371,0.58209505,41507.0,41506.0,0.30973437]
[1646380916071,0.21515305,41507.0,41506.0,0.30973437]
[1646380916711,0.58209505,41507.0,41506.0,0.30651721]
[1646380916911,0.58209505,41507.0,41506.0,0.30262219]
[1646380917311,0.58209505,41507.0,41506.0,0.45651721]
[1646380918415,0.58209505,41507.0,41506.0,0.30651721]
[1646380920223,0.58209505,41507.0,41499.0,0.003]
[1646380920224,0.68209505,41507.0,41499.0,0.003]
[1646380920463,0.64924152,41506.0,41499.0,0.003]
[1646380920663,0.26898718,41501.0,41499.0,0.003]
[1646380920865,0.5432159,41500.0,41499.0,0.003]
[1646380921265,0.60603801,41500.0,41499.0,0.003]
[1646380921465,0.60603801,41500.0,41490.0,0.3]
[1646380921661,0.60603801,41500.0,41493.0,0.15]
[1646380922463,0.60603801,41500.0,41493.0,0.3]
[1646380922464,0.1762739,41500.0,41493.0,0.3]
[1646380922665,0.1762739,41500.0,41496.0,0.15]
[1646380922863,0.366942,41499.0,41496.0,0.15]
[1646380924626,0.366942,41498.0,41496.0,0.15]
[1646380924827,0.366942,41499.0,41496.0,0.15]
[1646380925427,0.366942,41498.0,41496.0,0.15]
[1646380925627,0.366942,41497.0,41496.0,0.15]
[1646380925827,0.2262739,41500.0,41496.0,0.15]
[1646380925828,0.366914,41499.0,41496.0,0.15]
[1646380926427,0.2262739,41500.0,41496.0,0.15]
[1646380926632,0.366914,41499.0,41496.0,0.15]
[1646380926829,0.1762739,41500.0,41495.0,0.15]
[1646380927030,0.21971247,41492.0,41491.0,0.01434174]
[1646380927430,0.21971247,41492.0,41491.0,0.57628357]
[1646380927860,0.21971247,41492.0,41491.0,0.44383211]
[1646380928262,0.21971247,41492.0,41491.0,0.78659611]
[1646380928461,0.21971247,41492.0,41491.0,0.78691651]
[1646380928660,0.05,41500.0,41491.0,0.81106651]
[1646380928862,0.0027263,41497.0,41491.0,0.45612891]
[1646380929164,0.0027263,41497.0,41496.0,0.15]
[1646380929766,0.0027263,41497.0,41496.0,0.17415]
[1646380929963,0.0027263,41497.0,41496.0,0.493858]
[1646380930161,0.0027263,41497.0,41496.0,0.15]
[1646380932327,0.07766365,41497.0,41496.0,0.15]
[1646380932829,0.0027263,41497.0,41496.0,0.15]
[1646380933227,0.0027263,41497.0,41491.0,0.01434174]
[1646380933228,0.62396953,41497.0,41492.0,0.15]
[1646380933428,0.62396953,41497.0,41488.0,0.13554]
[1646380933429,0.366914,41495.0,41488.0,0.28554]
[1646380933627,0.366914,41495.0,41488.0,0.16204]
[1646380933830,0.20470576,41494.0,41488.0,0.15]
[1646380934029,0.427225,41493.0,41488.0,0.15]
[1646380934234,0.477225,41493.0,41488.0,0.15]
[1646380934628,0.72774743,41493.0,41488.0,0.15]
[1646380935565,0.477225,41493.0,41488.0,0.15]
[1646380935766,0.4883542,41493.0,41488.0,0.15]
[1646380935966,0.07184573,41491.0,41488.0,0.15]
[1646380936168,0.38088508,41490.0,41488.0,0.15]
[1646380936469,0.43088508,41490.0,41488.0,0.15]
[1646380936668,0.01121393,41489.0,41488.0,0.15]
[1646380936869,0.366914,41489.0,41488.0,0.15]
[1646380938268,0.28237064,41489.0,41488.0,0.15]
[1646380940523,0.58237064,41489.0,41488.0,0.15]
[1646380940723,0.8094777,41489.0,41488.0,0.15]
[1646380940923,0.5973984,41489.0,41488.0,0.15]
[1646380941121,0.28237064,41489.0,41488.0,0.15]
[1646380941324,0.06629106,41488.0,41486.0,0.33934238]
[1646380941523,0.54157695,41487.0,41486.0,0.33934238]
[1646380941725,0.59157695,41487.0,41486.0,0.33934238]
[1646380942524,0.89157695,41487.0,41486.0,0.33934238]
[1646380943360,0.59157695,41487.0,41486.0,0.33934238]
[1646380943761,0.66435505,41487.0,41486.0,0.33934238]
[1646380943962,1.01435505,41487.0,41486.0,0.33934238]
[1646380944361,1.25403465,41487.0,41486.0,0.33934238]
[1646380944765,1.04157695,41487.0,41481.0,0.00028928]
[1646380945562,1.03657695,41487.0,41481.0,0.00028928]
[1646380945762,0.06523078,41485.0,41481.0,0.00028928]
[1646380945962,0.666948,41484.0,41481.0,0.00028928]
[1646380946164,0.837597,41484.0,41481.0,0.00028928]
[1646380946363,0.35,41482.0,41462.0,0.29818718]
[1646380946632,0.35,41482.0,41459.0,0.34876577]
[1646380946633,0.57743719,41464.0,41459.0,0.34876577]
[1646380946821,0.57743719,41464.0,41456.0,0.19876577]
[1646380946822,0.366948,41463.0,41456.0,0.19876577]
[1646380947022,0.05,41464.0,41462.0,0.15]
[1646380947237,0.3,41473.0,41462.0,0.15]
[1646380947238,0.367054,41463.0,41462.0,0.15]
[1646380947524,0.367054,41465.0,41462.0,0.36846026]
[1646380947721,0.060348,41464.0,41462.0,0.15]
[1646380948521,0.05,41465.0,41462.0,0.15]
[1646380948721,0.28375914,41468.0,41462.0,0.15]
[1646380948923,0.34409914,41468.0,41462.0,0.15]
[1646380949121,0.34409914,41468.0,41457.0,0.40643911]
[1646380949122,0.16034,41468.0,41457.0,0.40643911]
[1646380949323,0.05,41468.0,41460.0,0.367054]
[1646380949522,0.120682,41472.0,41466.0,0.15]
[1646380949523,0.05,41471.0,41466.0,0.15]
[1646380949823,0.05,41471.0,41469.0,0.31413783]
[1646380950026,0.1,41474.0,41469.0,0.15]
[1646380950224,0.3,41477.0,41470.0,0.25388695]
[1646380950225,0.25052108,41473.0,41470.0,0.25388695]
[1646380950663,0.30052108,41473.0,41470.0,0.25388695]
[1646380950861,0.26030598,41473.0,41470.0,0.25388695]
[1646380951062,0.25052108,41473.0,41469.0,0.15]
[1646380951262,0.31085508,41473.0,41469.0,0.15]
[1646380951462,0.31085508,41473.0,41461.0,0.367054]
[1646380951665,0.31085508,41473.0,41468.0,0.15]
[1646380952263,0.36085508,41473.0,41470.0,0.21151901]
[1646380952863,0.36085508,41473.0,41468.0,0.15]
[1646380953467,0.3,41472.0,41468.0,0.15]
[1646380953663,0.120675,41472.0,41468.0,0.15]
[1646380954120,0.05,41471.0,41468.0,0.15]
[1646380954320,0.1,41471.0,41468.0,0.15]
[1646380954520,0.160337,41471.0,41466.0,0.15]
[1646380954722,0.05,41469.0,41466.0,0.15]
[1646380954920,0.05,41469.0,41468.0,0.18793872]
[1646380955123,0.05,41469.0,41467.0,0.22044439]
[1646380956021,0.05,41469.0,41466.0,0.15]
[1646380958460,0.367054,41468.0,41466.0,0.15]
[1646380958660,0.05,41469.0,41462.0,0.25586283]
[1646380958858,0.05,41469.0,41464.0,0.15]
[1646380959061,0.0127483,41468.0,41464.0,0.15]
[1646380959360,0.05,41469.0,41464.0,0.15]
[1646380959562,0.01307687,41467.0,41464.0,0.15]
[1646380959761,0.05,41468.0,41464.0,0.15]
[1646380959964,0.01000526,41466.0,41464.0,0.15]
[1646380960161,0.060345,41464.0,41456.0,0.2924]
[1646380960362,0.060345,41464.0,41461.0,0.2140319]
[1646380960565,0.060345,41464.0,41460.0,0.15]
[1646380960566,0.16154662,41463.0,41460.0,0.15]
[1646380961464,0.060345,41464.0,41461.0,0.23526276]
[1646380961914,0.060345,41464.0,41460.0,0.15]
[1646380962516,0.060345,41464.0,41462.0,0.15]
[1646380964317,0.057345,41464.0,41462.0,0.15]
[1646380964917,0.057345,41464.0,41463.0,0.24169623]
[1646380965117,0.057345,41464.0,41462.0,0.15]
[1646380965970,0.057345,41464.0,41463.0,0.27263612]
[1646380966169,0.057345,41464.0,41462.0,0.15]
[1646380967371,0.057345,41464.0,41461.0,0.00161783]
[1646380967693,0.057345,41464.0,41461.0,0.15161783]
[1646380968872,0.057345,41464.0,41461.0,0.15]
[1646380973663,0.057345,41464.0,41462.0,0.0017269]
[1646380974363,0.05,41468.0,41463.0,0.367054]
[1646380974564,0.05,41468.0,41467.0,0.15]
[1646380974766,0.05,41471.0,41467.0,0.15]
[1646380975164,0.01429219,41474.0,41467.0,0.15]
[1646380975165,0.06429219,41474.0,41467.0,0.15]
[1646380975366,0.53035,41477.0,41469.0,0.15558427]
[1646380975367,0.06317622,41475.0,41469.0,0.15558427]
[1646380975567,0.05,41474.0,41469.0,0.07738]
[1646380976166,0.05,41476.0,41469.0,0.07738]
[1646380976618,0.1,41477.0,41470.0,0.2131463]
[1646380976822,0.40602122,41478.0,41471.0,0.517054]
[1646380976823,0.120655,41478.0,41471.0,0.517054]
[1646380977021,0.1131,41480.0,41471.0,0.15]
[1646380977220,0.0116839,41478.0,41471.0,0.15]
[1646380977617,0.0116839,41478.0,41463.0,0.1]
[1646380977819,0.3,41479.0,41463.0,0.1]
[1646380977820,0.01218831,41476.0,41469.0,0.15]
[1646380978020,0.18875981,41473.0,41467.0,0.24337837]
[1646380978220,0.23875981,41473.0,41470.0,0.15]
[1646380978521,0.28875981,41473.0,41470.0,0.15]
[1646380978717,0.28875981,41473.0,41467.0,0.24337837]
[1646380978918,0.28875981,41473.0,41465.0,0.15]
[1646380979119,0.30219341,41473.0,41465.0,0.15]
[1646380979318,0.30219341,41473.0,41463.0,0.367054]
[1646380979517,0.30219341,41473.0,41464.0,0.15]
[1646380979719,0.3,41476.0,41473.0,0.24277593]
[1646380980018,0.07427522,41476.0,41473.0,0.24277593]
[1646380980221,0.16611856,41475.0,41473.0,0.24277593]
[1646380980871,0.367054,41474.0,41473.0,0.24277593]
[1646380981472,0.21611856,41475.0,41473.0,0.24277593]
[1646380981871,0.367054,41474.0,41473.0,0.24277593]
[1646380982073,0.21611856,41475.0,41473.0,0.24277593]
[1646380982271,0.367054,41474.0,41473.0,0.24277593]
[1646380982974,0.90428721,41474.0,41473.0,0.24277593]
[1646380983173,0.667054,41474.0,41473.0,0.24277593]
[1646380985529,0.3,41474.0,41464.0,0.15]
[1646380985828,0.060343,41472.0,41462.0,0.20722034]
[1646380986028,0.3,41474.0,41462.0,0.20722034]
[1646380986529,0.19144272,41468.0,41462.0,0.20722034]
[1646380986729,0.060341,41467.0,41463.0,0.367054]
[1646380986929,0.060341,41467.0,41462.0,0.20722034]
[1646380987531,0.060341,41467.0,41463.0,0.367054]
[1646380988263,0.060341,41467.0,41465.0,0.15]
[1646380988467,0.27896732,41467.0,41462.0,0.20722034]
[1646380989062,0.27896732,41467.0,41465.0,0.15]
[1646380989262,0.27896732,41467.0,41462.0,0.20722034]
[1646380990166,0.27896732,41467.0,41460.0,0.34876577]
[1646380990962,0.27896732,41467.0,41460.0,0.15]
[1646380991371,0.27896732,41467.0,41461.0,0.367054]
[1646380992020,0.27896732,41467.0,41463.0,0.26654681]
[1646380993116,0.060341,41467.0,41463.0,0.41654681]
[1646380993717,0.06244235,41467.0,41463.0,0.41654681]
[1646380994116,0.19871264,41466.0,41463.0,0.41654681]
[1646380994318,0.19871264,41466.0,41463.0,0.26654681]
[1646380995565,0.19871264,41466.0,41463.0,0.367054]
[1646380995966,0.19871264,41466.0,41462.0,0.15]
[1646380996667,0.19871264,41466.0,41462.0,0.42625755]
[1646380997267,0.19871264,41466.0,41465.0,0.0897]
[1646380997870,0.06244235,41467.0,41465.0,0.0897]
[1646380998268,0.00210135,41467.0,41465.0,0.0897]
[1646380998768,0.00210135,41467.0,41465.0,0.1896]
[1646380999129,0.00210135,41467.0,41465.0,0.0897]
[1646380999329,0.00210135,41467.0,41465.0,0.1896]
[1646380999926,0.00210135,41467.0,41465.0,0.3396]
[1646381000129,0.00210135,41467.0,41466.0,0.367054]
[1646381001330,0.00210135,41467.0,41466.0,0.19876577]
[1646381001529,0.00210135,41467.0,41465.0,0.3396]
[1646381001729,0.00210135,41467.0,41466.0,0.367054]
[1646381002126,0.00210135,41467.0,41465.0,0.53851832]
[1646381002869,0.00210135,41467.0,41466.0,0.367054]
[1646381003072,0.00210135,41467.0,41465.0,0.53851832]
[1646381003269,0.00210135,41467.0,41466.0,0.367027]
[1646381003470,0.00210135,41467.0,41466.0,0.56594532]
[1646381003670,0.00210135,41467.0,41466.0,0.367027]
[1646381009726,0.53995901,41479.0,41474.0,0.0042027]
[1646381010025,0.28995901,41479.0,41474.0,0.0042027]
[1646381010226,0.58995901,41479.0,41477.0,0.0897]
[1646381010469,0.58995901,41479.0,41477.0,0.1896]
[1646381010670,0.367027,41478.0,41477.0,0.1896]
[1646381010872,0.28995901,41479.0,41474.0,0.0042027]
[1646381011069,0.58995901,41479.0,41474.0,0.0042027]
[1646381012073,0.58995901,41479.0,41472.0,0.21263682]
[1646381012771,0.58995901,41479.0,41471.0,0.15]
[1646381014226,0.58995901,41479.0,41477.0,0.00123153]
[1646381014926,0.3,41478.0,41477.0,0.00123153]
[1646381015528,0.28995901,41479.0,41477.0,0.00123153]
[1646381015930,0.3,41478.0,41477.0,0.00123153]
[1646381016130,0.667027,41478.0,41477.0,0.00123153]
[1646381016331,0.367027,41478.0,41477.0,0.00123153]
[1646381016532,0.61961987,41478.0,41477.0,0.00123153]
[1646381016730,0.467027,41478.0,41477.0,0.00123153]
[1646381018866,0.467027,41478.0,41473.0,9.927e-05]
[1646381019167,0.350519,41477.0,41473.0,9.927e-05]
[1646381019367,0.400519,41477.0,41473.0,9.927e-05]
[1646381019569,0.521198,41477.0,41473.0,9.927e-05]
[1646381020468,0.400519,41477.0,41473.0,9.927e-05]
[1646381021616,0.400519,41477.0,41472.0,9.905e-05]
[1646381022219,0.460857,41477.0,41472.0,9.905e-05]
[1646381022821,0.05,41477.0,41472.0,9.905e-05]
[1646381023220,0.28995901,41479.0,41472.0,9.905e-05]
[1646381023817,0.367027,41478.0,41472.0,9.905e-05]
[1646381024219,0.350519,41477.0,41472.0,9.905e-05]
[1646381024519,0.367027,41478.0,41472.0,9.905e-05]
[1646381024818,0.51961987,41478.0,41472.0,9.905e-05]
[1646381025018,0.367027,41477.0,41472.0,9.905e-05]
[1646381025223,0.367027,41476.0,41472.0,9.905e-05]
[1646381025865,0.417027,41476.0,41472.0,9.905e-05]
[1646381026666,0.417027,41476.0,41473.0,0.00019019]
[1646381027266,0.367027,41475.0,41473.0,0.00019019]
[1646381027869,0.110332,41477.0,41473.0,0.00019019]
[1646381028067,0.367027,41476.0,41473.0,0.00019019]
[1646381028266,0.417027,41476.0,41473.0,0.00019019]
[1646381028467,0.650519,41475.0,41473.0,0.00019019]
[1646381028667,0.3,41475.0,41473.0,0.00019019]
[1646381029530,0.367027,41474.0,41473.0,0.00019019]
[1646381031531,0.667027,41474.0,41473.0,0.00019019]
[1646381032532,0.3,41474.0,41473.0,0.00019019]
[1646381032975,0.667027,41474.0,41473.0,0.00019019]
[1646381033177,0.3,41474.0,41473.0,0.00012485]
[1646381036919,0.3,41474.0,41473.0,0.00028606]
[1646381037315,0.667027,41474.0,41473.0,0.00028606]
[1646381039318,0.4,41474.0,41473.0,0.00028606]
[1646381040219,1.28415976,41474.0,41464.0,0.18652895]
[1646381040468,1.28415976,41474.0,41461.0,0.19891832]
[1646381040469,1.33415976,41474.0,41461.0,0.19891832]
[1646381040879,0.21292934,41473.0,41462.0,0.19891832]
[1646381041070,0.06033647,41473.0,41466.0,0.28969709]
[1646381041269,0.18965698,41468.0,41466.0,0.28969709]
[1646381041468,0.3,41473.0,41471.0,0.53151561]
[1646381041669,0.88415976,41474.0,41471.0,0.53151561]
[1646381041868,0.367027,41472.0,41471.0,0.53151561]
[1646381042069,1.31152206,41474.0,41473.0,9.723e-05]
[1646381042270,0.94449506,41474.0,41473.0,9.723e-05]
[1646381042470,1.47305028,41474.0,41473.0,9.723e-05]
[1646381043571,1.48955828,41474.0,41473.0,9.723e-05]
[1646381044726,1.12253128,41474.0,41473.0,9.723e-05]
[1646381044926,1.48955828,41474.0,41473.0,9.723e-05]
[1646381045229,1.63955828,41474.0,41473.0,9.723e-05]
[1646381045428,1.63955828,41474.0,41471.0,0.53080787]
[1646381045429,0.350519,41473.0,41471.0,0.53080787]
[1646381045630,0.367027,41472.0,41471.0,0.53080787]
[1646381046032,0.417027,41472.0,41471.0,0.53080787]
[1646381046330,0.367027,41473.0,41471.0,0.53080787]
[1646381046731,0.51983665,41473.0,41472.0,8.989e-05]
[1646381048683,0.51799212,41473.0,41472.0,8.989e-05]
[1646381051486,0.51799212,41473.0,41472.0,0.00017844]
[1646381051723,0.36518247,41473.0,41472.0,0.00017844]
[1646381052524,0.51787199,41473.0,41472.0,0.00017844]
[1646381053124,0.81787199,41473.0,41472.0,0.00017844]
[1646381053324,0.51787199,41473.0,41472.0,0.00017844]
[1646381053928,0.81787199,41473.0,41472.0,0.00017844]
[1646381055372,0.51787199,41473.0,41472.0,0.00017844]
[1646381056579,0.51787199,41473.0,41472.0,0.00026495]
[1646381058779,0.81787199,41473.0,41472.0,0.00026495]
[1646381059638,0.51787199,41473.0,41472.0,0.00026495]
[1646381060743,0.76219598,41474.0,41472.0,0.00026495]
[1646381060744,0.58415976,41474.0,41472.0,0.00026495]
[1646381060942,0.348714,41473.0,41472.0,0.00026495]
[1646381061541,0.366993,41473.0,41472.0,9.099e-05]
[1646381063281,0.43415976,41474.0,41472.0,9.099e-05]
[1646381064180,0.366993,41473.0,41472.0,9.099e-05]
[1646381064981,0.63195587,41474.0,41472.0,9.099e-05]
[1646381065182,0.43415976,41474.0,41472.0,9.099e-05]
[1646381065382,0.43415976,41474.0,41472.0,0.1792566]
[1646381065581,0.43415976,41474.0,41472.0,9.099e-05]
[1646381066183,0.49449476,41474.0,41472.0,9.099e-05]
[1646381066623,0.49449476,41474.0,41473.0,8.715e-05]
[1646381066624,0.43415976,41474.0,41473.0,8.715e-05]
[1646381067121,0.80115276,41474.0,41473.0,8.715e-05]
[1646381067322,0.43415976,41474.0,41473.0,8.715e-05]
[1646381068221,0.80115276,41474.0,41473.0,8.715e-05]
[1646381068423,0.43415976,41474.0,41473.0,8.715e-05]
[1646381068822,0.80115276,41474.0,41473.0,8.715e-05]
[1646381069024,1.971e-05,41473.0,41471.0,0.53098598]
[1646381071881,1.971e-05,41473.0,41472.0,8.749e-05]
[1646381073585,0.38395941,41474.0,41472.0,8.749e-05]
[1646381076824,0.38395941,41474.0,41472.0,0.00017278]
[1646381078506,0.666993,41473.0,41472.0,0.00017278]
[1646381078907,0.3,41473.0,41472.0,0.00017278]
[1646381079106,0.666993,41473.0,41472.0,0.00017278]
[1646381080307,0.3,41473.0,41472.0,0.00017278]
[1646381080506,0.49430041,41474.0,41472.0,0.00017278]
[1646381081106,0.3,41473.0,41472.0,0.00017278]
[1646381081728,0.666993,41473.0,41472.0,0.00017278]
[1646381083631,0.366993,41473.0,41472.0,0.00017278]
[1646381085878,0.36687592,41473.0,41472.0,0.00017278]
[1646381086680,0.66687592,41473.0,41472.0,0.00025419]
[1646381089623,0.348714,41472.0,41460.0,0.28155]
[1646381089825,0.34869885,41470.0,41460.0,0.13155]
[1646381090023,0.348714,41463.0,41460.0,0.1195]
[1646381090222,0.348714,41463.0,41456.0,0.02415]
[1646381090424,0.25079557,41464.0,41455.0,0.22897239]
[1646381090626,0.25079557,41464.0,41455.0,0.02515]
[1646381090627,0.3,41463.0,41455.0,0.02515]
[1646381090823,0.3,41463.0,41456.0,0.23577742]
[1646381091023,0.25079557,41464.0,41456.0,0.23577742]
[1646381091424,0.25079557,41464.0,41455.0,0.17515]
[1646381093778,0.17247192,41457.0,41456.0,0.21406837]
[1646381094180,0.17247192,41457.0,41455.0,0.17515]
[1646381094379,0.666995,41456.0,41455.0,0.001]
[1646381094779,0.366995,41456.0,41455.0,0.001]